bitfinex/quotes_SOLUSD_20220130
["timestamp","ask_amount","ask_price","bid_price","bid_amount"]
[1643536470805,0.25,95.657,95.57,45.00279345]
[1643536471203,2.95669142,95.656,95.571,104.65]
[1643536471404,0.25,95.655,95.571,104.65]
[1643536471807,2.95669142,95.675,95.582,104.4]
[1643536472005,2.95669142,95.687,95.592,6.0]
[1643536472207,2.95669142,95.687,95.595,62.57]
[1643536472507,2.95669142,95.701,95.605,6.0]
[1643536472705,2.95669142,95.701,95.596,104.65]
[1643536472906,2.95669142,95.701,95.596,104.4]
[1643536473108,2.95669142,95.701,95.597,0.25]
[1643536473807,15.938,95.7,95.597,0.25]
[1643536474208,2.95669142,95.699,95.597,0.25]
[1643536474409,0.25,95.698,95.597,0.25]
[1643536474812,15.689,95.69,95.597,0.25]
[1643536475209,3.20669142,95.689,95.595,24.3422]
[1643536475611,2.95669142,95.688,95.596,104.4]
[1643536475810,0.25,95.687,95.596,104.65]
[1643536476011,0.25,95.687,95.596,104.4]
[1643536476213,2.95669142,95.686,95.596,104.4]
[1643536476411,0.25,95.685,95.597,0.25]
[1643536476811,2.95669142,95.684,95.597,0.25]
[1643536477214,0.25,95.683,95.597,0.25]
[1643536477612,2.95669142,95.682,95.597,0.25]
[1643536477815,0.25,95.681,95.597,0.25]
[1643536478216,2.95669142,95.68,95.597,0.25]
[1643536478412,0.25,95.679,95.597,0.25]
[1643536479012,2.95669142,95.678,95.597,0.25]
[1643536479413,0.25,95.677,95.596,104.4]
[1643536479633,0.25,95.677,95.597,0.25]
[1643536479815,2.95669142,95.676,95.597,0.25]
[1643536480316,2.89596857,95.723,95.597,0.25]
[1643536480317,0.25,95.675,95.597,0.25]
[1643536480520,0.25,95.675,95.606,6.0]
[1643536480917,0.25,95.675,95.607,104.65]
[1643536481119,0.25,95.675,95.618,45.01294498]
[1643536481322,0.25,95.695,95.618,45.01294498]
[1643536481721,3.20669142,95.695,95.618,45.01294498]
[1643536481919,2.95669142,95.695,95.618,45.01294498]
[1643536482119,0.25,95.694,95.619,104.4]
[1643536482319,0.25,95.694,95.619,104.65]
[1643536482520,0.25,95.694,95.62,23.5217]
[1643536482822,2.95669142,95.693,95.621,0.25]
[1643536483019,2.95669142,95.693,95.62,23.5217]
[1643536483222,2.95669142,95.693,95.621,104.65]
[1643536483426,2.95669142,95.693,95.621,104.4]
[1643536484327,0.25,95.692,95.621,104.4]
[1643536485829,0.25,95.692,95.622,0.25]
[1643536486028,0.25,95.692,95.623,104.4]
[1643536486327,0.25,95.692,95.624,0.25]
[1643536487146,0.25,95.704,95.624,0.25]
[1643536488153,3.20669142,95.704,95.624,0.25]
[1643536488353,0.25,95.703,95.624,0.25]
[1643536489853,0.25,95.703,95.634,39.22522]
[1643536490153,0.25,95.703,95.635,24.339]
[1643536490353,0.25,95.703,95.635,24.589]
[1643536491571,2.95669142,95.702,95.635,24.339]
[1643536491864,0.25,95.701,95.635,24.339]
[1643536492271,0.25,95.701,95.636,0.25]
[1643536493666,0.25,95.701,95.635,24.339]
[1643536494369,0.25,95.701,95.636,104.65]
[1643536494567,0.25,95.701,95.646,110.4]
[1643536494770,0.25,95.713,95.647,23.5169]
[1643536495167,0.25,95.723,95.657,6.0]
[1643536495368,0.25,95.723,95.658,40.1242559]
[1643536495971,0.25,95.723,95.659,23.8146]
[1643536496368,0.25,95.723,95.66,104.4]
[1643536498991,2.95669142,95.724,95.66,104.4]
[1643536499193,2.95669142,95.724,95.661,0.25]
[1643536499393,26.84099142,95.74,95.661,0.25]
[1643536499995,2.95669142,95.737,95.661,0.25]
[1643536500394,0.25,95.736,95.66,104.4]
[1643536500595,0.25,95.736,95.658,40.1242559]
[1643536500903,5.83313498,95.735,95.658,40.1242559]
[1643536501096,2.87644356,95.734,95.658,40.1242559]
[1643536501293,6.08313498,95.734,95.658,40.1242559]
[1643536501494,2.95669142,95.733,95.659,24.5763]
[1643536501694,0.25,95.732,95.659,24.5763]
[1643536502095,15.683,95.73,95.659,24.5763]
[1643536502295,0.25,95.729,95.659,24.5763]
[1643536502597,3.20669142,95.729,95.659,24.5763]
[1643536502796,2.95669142,95.728,95.66,0.25]
[1643536503998,0.25,95.727,95.659,24.5763]
[1643536504402,2.95669142,95.726,95.66,0.25]
[1643536504802,0.25,95.725,95.66,0.25]
[1643536505204,2.95669142,95.724,95.66,0.25]
[1643536505402,0.25,95.723,95.66,0.25]
[1643536505803,3.20669142,95.723,95.66,0.25]
[1643536506302,0.25,95.723,95.66,0.25]
[1643536506502,0.25,95.723,95.669,6.0]
[1643536506704,2.95669142,95.722,95.67,23.9488]
[1643536506908,0.25,95.721,95.67,23.9488]
[1643536507306,3.20669142,95.721,95.67,23.9488]
[1643536507906,0.25,95.721,95.67,23.9488]
[1643536508307,0.25,95.731,95.67,23.9488]
[1643536509209,2.95669142,95.73,95.67,23.9488]
[1643536509408,0.25,95.729,95.658,40.1242559]
[1643536509810,2.95669142,95.728,95.658,40.1242559]
[1643536510009,2.95669142,95.728,95.659,0.25]
[1643536510209,0.25,95.727,95.658,40.1242559]
[1643536510709,2.95669142,95.726,95.658,40.1242559]
[1643536510909,3.12816288,95.725,95.658,40.1242559]
[1643536511114,0.25,95.725,95.658,40.1242559]
[1643536511313,2.95669142,95.724,95.658,40.1242559]
[1643536511710,0.25,95.723,95.658,40.1242559]
[1643536512112,15.684,95.72,95.658,40.1242559]
[1643536512311,0.25,95.719,95.658,40.1242559]
[1643536512512,3.20669142,95.719,95.658,40.1242559]
[1643536512911,2.95669142,95.718,95.658,40.1242559]
[1643536513313,0.25,95.717,95.658,40.1242559]
[1643536513713,2.95669142,95.716,95.658,40.1242559]
[1643536513921,0.25,95.715,95.658,40.1242559]
[1643536514314,2.95669142,95.714,95.658,40.1242559]
[1643536514516,2.95669142,95.714,95.659,22.9362]
[1643536514714,0.25,95.713,95.659,22.9362]
[1643536515113,3.20669142,95.713,95.659,22.9362]
[1643536515315,0.25,95.713,95.659,22.9362]
[1643536515517,0.25,95.713,95.66,104.4]
[1643536515715,0.25,95.727,95.659,22.9362]
[1643536516216,3.20669142,95.727,95.659,22.9362]
[1643536516417,0.25,95.726,95.659,22.9362]
[1643536518717,2.95669142,95.725,95.659,22.9362]
[1643536518920,0.25,95.724,95.658,40.1242559]
[1643536519319,2.95669142,95.723,95.587,2.90436845]
[1643536519518,5.83878316,95.723,95.62,6.0]
[1643536519720,0.25,95.722,95.62,6.0]
[1643536519919,2.88209174,95.721,95.621,6.0]
[1643536520119,5.83878316,95.721,95.621,6.25]
[1643536520319,39.6154,95.72,95.623,104.4]
[1643536520520,42.57209142,95.72,95.633,6.0]
[1643536520721,2.95669142,95.719,95.634,22.791]
[1643536520925,2.95669142,95.719,95.634,23.041]
[1643536521122,0.25,95.718,95.634,23.041]
[1643536521320,0.25,95.718,95.634,22.791]
[1643536521523,5.83933221,95.717,95.634,22.791]
[1643536521723,2.88264079,95.716,95.634,22.791]
[1643536521923,5.83933221,95.716,95.634,22.791]
[1643536522124,15.686,95.71,95.634,22.791]
[1643536522521,15.686,95.71,95.635,0.25]
[1643536522721,2.95669142,95.709,95.634,22.791]
[1643536523120,22.9089,95.708,95.634,22.791]
[1643536523323,23.1589,95.708,95.634,22.791]
[1643536523521,2.95669142,95.707,95.634,22.791]
[1643536523921,0.25,95.706,95.634,22.791]
[1643536524321,2.95669142,95.705,95.634,22.791]
[1643536524748,0.25,95.704,95.634,22.791]
[1643536526749,2.95669142,95.703,95.634,22.791]
[1643536527147,0.25,95.702,95.634,22.791]
[1643536527547,2.95669142,95.701,95.634,22.791]
[1643536527748,0.25,95.702,95.634,22.791]
[1643536527950,0.25,95.7,95.634,22.791]
[1643536528148,0.25,95.702,95.635,0.25]
[1643536528348,0.25,95.702,95.634,22.791]
[1643536528551,2.95669142,95.699,95.634,22.791]
[1643536528948,0.25,95.698,95.634,22.791]
[1643536529351,2.95669142,95.697,95.634,22.791]
[1643536529849,0.25,95.696,95.634,22.791]
[1643536530248,0.25,95.696,95.622,32.74172411]
[1643536530249,2.95669142,95.695,95.622,32.74172411]
[1643536530648,0.25,95.694,95.622,32.74172411]
[1643536531048,2.95669142,95.693,95.622,32.74172411]
[1643536531450,0.25,95.692,95.622,32.74172411]
[1643536531854,2.95669142,95.691,95.622,32.74172411]
[1643536532051,15.69,95.69,95.622,32.74172411]
[1643536532250,15.94,95.69,95.622,32.74172411]
[1643536532451,2.95669142,95.689,95.622,32.74172411]
[1643536532951,0.25,95.688,95.622,32.74172411]
[1643536533351,2.95669142,95.687,95.622,32.74172411]
[1643536533754,0.25,95.686,95.623,22.976]
[1643536534155,2.95669142,95.685,95.623,22.976]
[1643536534357,0.25,95.684,95.623,22.976]
[1643536535455,0.25,95.688,95.623,22.976]
[1643536535860,2.95669142,95.684,95.623,22.976]
[1643536536256,0.25,95.683,95.623,22.976]
[1643536536659,3.20669142,95.683,95.623,22.976]
[1643536542863,15.691,95.68,95.59,15.11]
[1643536543062,15.691,95.68,95.577,104.4]
[1643536543263,3.20669142,95.679,95.6,6.0]
[1643536543468,3.20669142,95.679,95.591,0.25]
[1643536543662,27.44319142,95.678,95.591,0.25]
[1643536543864,0.25,95.677,95.591,0.25]
[1643536544062,3.20669142,95.677,95.599,6.0]
[1643536544265,3.20669142,95.677,95.6,128.1746]
[1643536544663,3.20669142,95.677,95.611,36.95753869]
[1643536544866,3.20669142,95.677,95.612,23.5246]
[1643536547264,3.20669142,95.677,95.613,0.25]
[1643536548465,3.20669142,95.677,95.622,6.0]
[1643536548665,2.95669142,95.703,95.623,23.2457]
[1643536548866,22.9448,95.71,95.624,104.4]
[1643536549066,22.9448,95.71,95.634,6.0]
[1643536549266,2.95669142,95.716,95.635,169.84118224]
[1643536549467,2.95669142,95.716,95.635,169.59118224]
[1643536549669,2.95669142,95.716,95.645,6.0]
[1643536549867,2.95669142,95.716,95.646,127.9638]
[1643536550067,0.25,95.715,95.656,6.0]
[1643536550267,0.25,95.727,95.657,36.89158601]
[1643536551571,2.95669142,95.726,95.657,36.89158601]
[1643536551771,0.25,95.725,95.657,36.89158601]
[1643536551972,2.88011905,95.724,95.657,36.89158601]
[1643536552175,5.83681047,95.724,95.657,36.89158601]
[1643536552470,3.20669142,95.723,95.657,36.89158601]
[1643536552870,2.95669142,95.722,95.657,36.89158601]
[1643536553072,15.684,95.72,95.657,36.89158601]
[1643536553272,0.25,95.719,95.657,36.89158601]
[1643536553474,3.20669142,95.719,95.657,36.89158601]
[1643536553773,2.95669142,95.718,95.657,36.89158601]
[1643536554172,0.25,95.717,95.657,36.89158601]
[1643536554574,2.95669142,95.716,95.657,36.89158601]
[1643536554776,0.25,95.715,95.657,36.89158601]
[1643536554974,15.686,95.71,95.657,36.89158601]
[1643536555376,0.25,95.709,95.657,36.89158601]
[1643536555776,2.95669142,95.709,95.658,22.7694]
[1643536556076,2.95669142,95.708,95.658,22.7694]
[1643536558404,0.25,95.707,95.617,104.4]
[1643536558605,0.25,95.707,95.659,46.2085194]
[1643536558805,1.44060923,95.699,95.659,46.2085194]
[1643536559205,1.69060923,95.698,95.659,46.2085194]
[1643536559405,4.64730065,95.698,95.659,46.2085194]
[1643536559606,2.95669142,95.697,95.627,6.0]
[1643536559812,1.69060923,95.696,95.628,6.0]
[1643536560008,0.25,95.696,95.618,25.0502]
[1643536560207,1.69060923,95.696,95.618,25.0502]
[1643536560407,1.69060923,95.696,95.628,6.0]
[1643536560611,0.25,95.696,95.629,65.9806072]
[1643536561008,0.25,95.696,95.639,6.0]
[1643536561210,1.69060923,95.696,95.64,23.8755]
[1643536561412,0.25,95.696,95.64,23.8755]
[1643536562412,1.44060923,95.694,95.64,23.8755]
[1643536562609,0.25,95.696,95.64,23.8755]
[1643536562610,4.39730065,95.695,95.64,23.8755]
[1643536562810,1.44060923,95.693,95.64,23.8755]
[1643536563009,4.39730065,95.693,95.64,23.8755]
[1643536563210,3.20669142,95.692,95.64,23.8755]
[1643536563710,2.95669142,95.691,95.629,42.1051072]
[1643536563910,1.44060923,95.689,95.639,6.0]
[1643536564210,1.69060923,95.69,95.64,6.0]
[1643536564410,2.95669142,95.688,95.64,6.0]
[1643536564610,4.39730065,95.688,95.64,6.0]
[1643536564811,0.25,95.687,95.64,6.0]
[1643536565012,3.20669142,95.687,95.63,23.9483]
[1643536565213,2.95669142,95.686,95.63,23.9483]
[1643536565413,0.25,95.685,95.63,23.9483]
[1643536565812,2.95669142,95.684,95.63,23.9483]
[1643536566212,0.25,95.683,95.63,23.9483]
[1643536566612,2.95669142,95.682,95.63,23.9483]
[1643536566814,0.25,95.681,95.63,23.9483]
[1643536567218,1.44060923,95.691,95.631,104.65]
[1643536567416,2.95669142,95.699,95.64,6.0]
[1643536567417,0.25,95.69,95.64,6.0]
[1643536567618,0.25,95.69,95.63,23.9483]
[1643536567815,1.69060923,95.69,95.63,23.9483]
[1643536568015,1.44060923,95.687,95.63,23.9483]
[1643536568216,1.44060923,95.685,95.63,23.9483]
[1643536568417,1.44060923,95.685,95.629,42.1051072]
[1643536568418,0.25,95.684,95.629,42.1051072]
[1643536568615,3.20669142,95.684,95.629,42.1051072]
[1643536568817,3.20669142,95.684,95.63,22.7457]
[1643536569217,0.25,95.684,95.63,22.7457]
[1643536569417,0.25,95.684,95.631,0.25]
[1643536569617,0.25,95.691,95.64,6.0]
[1643536569818,0.25,95.693,95.63,22.7457]
[1643536570019,1.44060923,95.692,95.63,22.7457]
[1643536570420,0.25,95.691,95.63,22.7457]
[1643536571520,1.44060923,95.691,95.63,22.7457]
[1643536571921,0.25,95.69,95.63,22.7457]
[1643536572925,0.25,95.691,95.63,22.7457]
[1643536573125,1.69060923,95.691,95.63,22.7457]
[1643536573327,0.25,95.69,95.63,22.7457]
[1643536574725,1.69060923,95.69,95.63,22.7457]
[1643536574926,2.95669142,95.689,95.63,22.7457]
[1643536575127,1.44060923,95.687,95.63,22.7457]
[1643536575329,1.69060923,95.686,95.63,22.7457]
[1643536575526,1.44060923,95.685,95.63,22.7457]
[1643536575727,4.39730065,95.685,95.63,22.7457]
[1643536576028,3.20669142,95.684,95.63,22.7457]
[1643536576226,3.20669142,95.684,95.614,24.3207]
[1643536576426,3.20669142,95.684,95.616,104.4]
[1643536576427,2.95669142,95.683,95.616,104.4]
[1643536576626,2.95669142,95.683,95.616,37.92821636]
[1643536576827,0.25,95.682,95.617,0.25]
[1643536577232,2.95669142,95.681,95.617,0.25]
[1643536577629,0.25,95.68,95.617,0.25]
[1643536578030,2.95669142,95.679,95.617,0.25]
[1643536578433,0.25,95.678,95.617,0.25]
[1643536578931,2.95669142,95.677,95.617,0.25]
[1643536579331,0.25,95.676,95.617,0.25]
[1643536581335,0.25,95.677,95.617,0.25]
[1643536581533,1.44060923,95.681,95.617,0.25]
[1643536581934,1.44060923,95.684,95.617,0.25]
[1643536582735,1.44060923,95.683,95.617,0.25]
[1643536582938,1.44060923,95.682,95.617,0.25]
[1643536583337,0.25,95.681,95.617,0.25]
[1643536583540,3.20669142,95.681,95.617,0.25]
[1643536583738,4.64730065,95.681,95.617,0.25]
[1643536583937,2.95669142,95.68,95.617,0.25]
[1643536584338,0.25,95.679,95.617,0.25]
[1643536584742,2.95669142,95.678,95.617,104.65]
[1643536584937,2.95669142,95.678,95.617,0.25]
[1643536585137,0.25,95.677,95.617,0.25]
[1643536585341,1.44060923,95.675,95.617,0.25]
[1643536585642,1.44060923,95.674,95.617,0.25]
[1643536585839,4.64730065,95.674,95.617,0.25]
[1643536586038,2.95669142,95.673,95.617,0.25]
[1643536586240,15.692,95.67,95.617,0.25]
[1643536586439,15.692,95.67,95.615,22.6554]
[1643536586638,4.64730065,95.669,95.615,22.6554]
[1643536586839,1.44060923,95.666,95.615,22.6554]
[1643536587142,1.44060923,95.666,95.582,40.71061197]
[1643536587340,3.20669142,95.665,95.582,64.58381197]
[1643536587542,1.44060923,95.664,95.582,64.58381197]
[1643536587741,4.39730065,95.664,95.582,64.58381197]
[1643536588041,15.694,95.66,95.582,64.58381197]
[1643536588458,3.20669142,95.659,95.582,64.58381197]
[1643536588841,2.95669142,95.658,95.582,64.58381197]
[1643536589245,0.25,95.657,95.582,64.58381197]
[1643536589642,2.95669142,95.656,95.582,64.58381197]
[1643536589844,0.25,95.655,95.582,64.58381197]
[1643536590042,0.25,95.655,95.583,104.4]
[1643536590243,2.95669142,95.654,95.583,104.4]
[1643536590443,0.25,95.655,95.584,0.25]
[1643536590644,0.25,95.653,95.584,0.25]
[1643536590846,2.95669142,95.654,95.584,0.25]
[1643536591044,2.95669142,95.652,95.584,0.25]
[1643536591343,0.25,95.651,95.584,0.25]
[1643536591544,0.25,95.651,95.583,0.25]
[1643536591743,2.95669142,95.65,95.583,0.25]
[1643536591943,2.95669142,95.65,95.582,64.33381197]
[1643536592167,0.25,95.649,95.582,64.33381197]
[1643536593374,0.25,95.649,95.583,0.25]
[1643536598181,0.25,95.659,95.583,0.25]
[1643536598382,0.25,95.659,95.583,104.65]
[1643536598579,0.25,95.659,95.583,0.25]
[1643536599181,15.694,95.66,95.583,0.25]
[1643536601285,0.25,95.659,95.583,0.25]
[1643536602687,0.25,95.659,95.583,104.65]
[1643536602886,0.25,95.659,95.583,0.25]
[1643536603287,0.25,95.659,95.583,104.65]
[1643536603490,0.25,95.666,95.583,104.65]
[1643536603886,0.25,95.673,95.583,104.65]
[1643536604286,0.25,95.674,95.583,104.65]
[1643536604487,15.693,95.67,95.583,0.25]
[1643536604888,0.25,95.669,95.583,0.25]
[1643536605091,3.20669142,95.669,95.583,0.25]
[1643536605391,2.95669142,95.668,95.583,0.25]
[1643536605790,0.25,95.667,95.583,0.25]
[1643536605993,23.9588,95.667,95.583,0.25]
[1643536606195,2.95669142,95.666,95.583,0.25]
[1643536606491,0.25,95.665,95.583,0.25]
[1643536607992,1.69060923,95.665,95.592,6.0]
[1643536608194,1.69060923,95.665,95.593,104.4]
[1643536608394,0.25,95.665,95.594,24.1131]
[1643536608599,0.25,95.665,95.604,6.0]
[1643536608895,0.25,95.682,95.605,24.3631]
[1643536609194,1.44060923,95.68,95.606,104.4]
[1643536609394,0.25,95.679,95.607,0.25]
[1643536610596,0.25,95.68,95.607,0.25]
[1643536610796,0.25,95.684,95.607,0.25]
[1643536611020,0.25,95.684,95.617,138.90381055]
[1643536611225,0.25,95.684,95.618,23.0906]
[1643536611421,0.25,95.686,95.618,23.3406]
[1643536611824,1.44060923,95.686,95.618,23.3406]
[1643536612222,0.25,95.685,95.618,23.3406]
[1643536613229,1.69060923,95.685,95.618,23.3406]
[1643536613427,1.44060923,95.685,95.618,23.3406]
[1643536613627,0.25,95.684,95.618,23.3406]
[1643536614827,0.25,95.686,95.618,23.3406]
[1643536615026,0.25,95.686,95.618,23.0906]
[1643536615227,1.69060923,95.686,95.618,23.0906]
[1643536616432,0.25,95.686,95.618,23.0906]
[1643536616629,2.95669142,95.685,95.618,23.0906]
[1643536616830,0.25,95.684,95.618,23.0906]
[1643536617028,1.44060923,95.681,95.618,23.0906]
[1643536617228,1.44060923,95.68,95.618,23.0906]
[1643536617829,1.44060923,95.683,95.618,23.0906]
[1643536618833,1.44060923,95.682,95.618,23.0906]
[1643536619234,1.44060923,95.681,95.618,23.0906]
[1643536619735,1.44060923,95.679,95.618,23.0906]
[1643536620134,0.25,95.678,95.618,23.0906]
[1643536621334,0.25,95.679,95.618,23.0906]
[1643536622336,1.44060923,95.677,95.618,23.0906]
[1643536622540,1.44060923,95.674,95.618,23.0906]
[1643536622936,0.25,95.673,95.618,23.0906]
[1643536623536,1.69060923,95.673,95.618,23.0906]
[1643536624538,1.44060923,95.672,95.618,23.0906]
[1643536624738,1.44060923,95.672,95.55,15.692]
[1643536624739,15.692,95.67,95.577,1.45292293]
[1643536624938,15.692,95.67,95.583,0.25]
[1643536624939,1.44060923,95.666,95.583,0.25]
[1643536625139,1.44060923,95.662,95.583,0.25]
[1643536625343,0.25,95.661,95.583,0.25]
[1643536625640,1.44060923,95.659,95.583,38.41539607]
[1643536625839,0.25,95.658,95.583,38.41539607]
[1643536626038,25.0658,95.658,95.583,38.41539607]
[1643536628242,24.8158,95.658,95.583,38.41539607]
[1643536629672,0.25,95.657,95.583,38.41539607]
[1643536637883,15.696,95.65,95.583,38.41539607]
[1643536638283,0.25,95.649,95.583,38.41539607]
[1643536641688,2.95669142,95.648,95.583,38.41539607]
[1643536641889,0.25,95.647,95.583,38.41539607]
[1643536642293,25.1202,95.647,95.583,38.41539607]
[1643536642490,25.1202,95.647,95.582,24.0192]
[1643536643590,25.1202,95.647,95.583,32.90445449]
[1643536643791,0.25,95.647,95.584,0.25]
[1643536644192,0.25,95.653,95.584,23.9072]
[1643536644393,29.45230134,95.67,95.584,23.9072]
[1643536644394,1.44060923,95.663,95.584,23.9072]
[1643536644796,0.25,95.662,95.584,23.9072]
[1643536645493,15.694,95.66,95.584,23.6572]
[1643536645693,1.44060923,95.659,95.584,23.6572]
[1643536645894,1.44060923,95.658,95.571,6.0]
[1643536646094,0.25,95.657,95.572,30.4182]
[1643536646294,1.44060923,95.646,95.572,30.4182]
[1643536646495,1.44060923,95.643,95.572,30.4182]
[1643536646694,1.44060923,95.642,95.573,33.22477327]
[1643536646893,0.25,95.642,95.573,33.22477327]
[1643536647293,0.25,95.642,95.574,104.65]
[1643536647694,0.25,95.642,95.574,0.25]
[1643536647899,0.25,95.654,95.574,0.25]
[1643536648094,0.25,95.654,95.573,33.22477327]
[1643536648295,15.696,95.65,95.573,33.22477327]
[1643536648696,0.25,95.649,95.573,33.22477327]
[1643536649496,1.44060923,95.645,95.573,33.22477327]
[1643536649695,1.44060923,95.647,95.573,33.22477327]
[1643536649895,2.95669142,95.648,95.573,33.22477327]
[1643536649896,0.25,95.644,95.573,33.22477327]
[1643536650394,0.25,95.644,95.574,0.25]
[1643536650795,0.25,95.647,95.573,33.22477327]
[1643536651095,0.25,95.647,95.574,0.25]
[1643536651295,0.25,95.649,95.574,0.25]
[1643536651497,0.25,95.649,95.573,33.22477327]
[1643536651696,2.95669142,95.646,95.573,33.22477327]
[1643536651996,1.69060923,95.645,95.573,33.22477327]
[1643536652195,25.09200923,95.645,95.573,33.22477327]
[1643536652597,1.44060923,95.641,95.573,33.22477327]
[1643536652801,1.69060923,95.64,95.573,33.22477327]
[1643536653698,0.25,95.64,95.574,0.25]
[1643536653899,0.25,95.642,95.574,0.25]
[1643536654300,0.25,95.644,95.574,0.25]
[1643536654900,1.69060923,95.644,95.574,0.25]
[1643536655302,0.25,95.644,95.574,0.25]
[1643536655498,2.95669142,95.643,95.572,24.4182]
[1643536655699,1.44060923,95.633,95.558,22.992]
[1643536655926,0.25,95.632,95.559,24.7598]
[1643536656200,1.44060923,95.629,95.559,24.7598]
[1643536656400,0.25,95.628,95.56,40.16015933]
[1643536656803,0.25,95.628,95.561,0.25]
[1643536657301,0.25,95.628,95.56,40.16015933]
[1643536657502,1.69060923,95.636,95.56,40.16015933]
[1643536657703,0.25,95.636,95.56,40.16015933]
[1643536658305,0.25,95.637,95.56,40.16015933]
[1643536658905,1.69060923,95.639,95.56,40.16015933]
[1643536659607,1.44060923,95.638,95.56,40.16015933]
[1643536659906,0.25,95.637,95.56,40.16015933]
[1643536660107,0.25,95.639,95.56,40.16015933]
[1643536665237,0.25,95.639,95.561,0.25]
[1643536666438,0.25,95.639,95.56,40.16015933]
[1643536669040,0.25,95.639,95.561,0.25]
[1643536669843,0.25,95.639,95.56,40.16015933]
[1643536670042,1.69060923,95.639,95.56,40.16015933]
[1643536670242,0.25,95.639,95.561,0.25]
[1643536670645,0.25,95.639,95.56,40.16015933]
[1643536671141,0.25,95.639,95.561,0.25]
[1643536673443,0.25,95.641,95.561,0.25]
[1643536674249,1.69060923,95.641,95.561,0.25]
[1643536674946,1.44060923,95.64,95.561,0.25]
[1643536675348,0.25,95.639,95.561,0.25]
[1643536675950,1.69060923,95.639,95.561,0.25]
[1643536676149,1.69060923,95.639,95.57,6.0]
[1643536676349,0.25,95.639,95.571,24.7265]
[1643536676551,0.25,95.639,95.581,6.0]
[1643536676754,0.25,95.639,95.582,24.4765]
[1643536677152,0.25,95.639,95.593,38.99794051]
[1643536677352,0.25,95.641,95.594,24.7073]
[1643536677752,0.25,95.642,95.594,24.7073]
[1643536678155,1.69060923,95.643,95.594,24.7073]
[1643536680456,1.44060923,95.642,95.594,24.7073]
[1643536680859,0.25,95.641,95.594,24.7073]
[1643536681255,1.69060923,95.641,95.594,24.7073]
[1643536682462,0.25,95.641,95.594,24.7073]
[1643536683662,0.25,95.641,95.595,0.25]
[1643536683865,23.4014,95.645,95.595,0.25]
[1643536683866,0.25,95.644,95.595,0.25]
[1643536684164,0.25,95.644,95.594,24.7073]
[1643536685763,0.25,95.644,95.595,0.25]
[1643536687165,0.25,95.646,95.595,0.25]
[1643536687364,0.25,95.647,95.604,6.0]
[1643536687565,0.25,95.647,95.605,30.8524]
[1643536687765,0.25,95.653,95.605,24.8524]
[1643536688364,0.25,95.656,95.605,24.8524]
[1643536688766,0.25,95.657,95.605,24.8524]
[1643536689166,1.69060923,95.658,95.605,24.8524]
[1643536689790,0.25,95.658,95.605,24.8524]
[1643536691289,0.25,95.659,95.605,24.8524]
[1643536691788,0.25,95.66,95.605,24.8524]
[1643536692790,0.25,95.662,95.605,24.8524]
[1643536692990,1.69060923,95.662,95.605,24.8524]
[1643536693192,1.44060923,95.663,95.605,24.8524]
[1643536693391,0.25,95.661,95.605,24.8524]
[1643536695996,0.25,95.661,95.606,104.4]
[1643536697197,1.69060923,95.664,95.606,104.4]
[1643536697997,1.44060923,95.664,95.606,104.4]